[Event "Late-Titled-Tuesday-Blitz-March-19-2024"]
[Site "Chess.com"]
[Date "2024.03.19"]
[Round "9"]
[White "Blitzstream"]
[Black "bescmelasti"]
[Result "1-0"]
[WhiteElo "2849"]
[BlackElo "2694"]
[TimeControl "180+1"]
[EndTime "15:42:30 PDT"]
[Termination "Blitzstream won on time"]

1. e4 {[%clk 0:03:00.9]} 1... c5 {[%clk 0:03:00.1]} 2. Nf3 {[%clk 0:03:00.9]}
2... e6 {[%clk 0:03:00.7]} 3. g3 {[%clk 0:02:58.6]} 3... Nc6 {[%clk 0:03:00.4]}
4. Bg2 {[%clk 0:02:58.6]} 4... Nf6 {[%clk 0:02:59.1]} 5. Nc3 {[%clk 0:02:55.3]}
5... d5 {[%clk 0:02:58.6]} 6. exd5 {[%clk 0:02:54.6]} 6... exd5 {[%clk
0:02:59.5]} 7. O-O {[%clk 0:02:55.2]} 7... d4 {[%clk 0:02:56.8]} 8. Re1+ {[%clk
0:02:49.2]} 8... Be7 {[%clk 0:02:57]} 9. Ne4 {[%clk 0:02:49.6]} 9... O-O {[%clk
0:02:57.7]} 10. d3 {[%clk 0:02:49.5]} 10... Nxe4 {[%clk 0:02:54.2]} 11. Rxe4
{[%clk 0:02:49.6]} 11... Bf5 {[%clk 0:02:49.7]} 12. Re1 {[%clk 0:02:49.7]} 12...
Bd6 {[%clk 0:02:44.2]} 13. Bg5 {[%clk 0:02:47.4]} 13... Qd7 {[%clk 0:02:43.9]}
14. Qd2 {[%clk 0:02:47.2]} 14... Rfe8 {[%clk 0:02:41.3]} 15. Bf4 {[%clk
0:02:46.8]} 15... h6 {[%clk 0:02:34.2]} 16. a3 {[%clk 0:02:46.3]} 16... Bf8
{[%clk 0:02:25.8]} 17. Ne5 {[%clk 0:02:37.8]} 17... Nxe5 {[%clk 0:02:24.9]} 18.
Bxe5 {[%clk 0:02:38.7]} 18... f6 {[%clk 0:02:16.8]} 19. Bf4 {[%clk 0:02:38.7]}
19... g5 {[%clk 0:02:14.1]} 20. g4 {[%clk 0:02:37]} 20... Bxg4 {[%clk 0:02:13]}
21. Bg3 {[%clk 0:02:37.2]} 21... Bh3 {[%clk 0:01:56.5]} 22. Bf3 {[%clk
0:02:25.5]} 22... Bg4 {[%clk 0:01:52.7]} 23. Bg2 {[%clk 0:02:25.3]} 23... Bh3
{[%clk 0:01:38]} 24. Bf3 {[%clk 0:02:24.8]} 24... Bd6 {[%clk 0:01:26.7]} 25. Qa5
{[%clk 0:02:17.5]} 25... b6 {[%clk 0:01:21.5]} 26. Qa6 {[%clk 0:02:16.4]} 26...
Rad8 {[%clk 0:01:07.8]} 27. Qc4+ {[%clk 0:02:08.2]} 27... Kg7 {[%clk 0:01:05.1]}
28. Bh5 {[%clk 0:01:59.9]} 28... Qb7 {[%clk 0:00:37.2]} 29. f3 {[%clk
0:01:53.6]} 29... Bxg3 {[%clk 0:00:37.3]} 30. hxg3 {[%clk 0:01:52.2]} 30... Re5
{[%clk 0:00:24.3]} 31. Rxe5 {[%clk 0:01:46.5]} 31... fxe5 {[%clk 0:00:25.2]} 32.
Re1 {[%clk 0:01:46.3]} 32... Qd5 {[%clk 0:00:24.4]} 33. Qxd5 {[%clk 0:01:43.4]}
33... Rxd5 {[%clk 0:00:25.3]} 34. g4 {[%clk 0:01:44]} 34... b5 {[%clk
0:00:14.8]} 35. Kh2 {[%clk 0:01:43.9]} 35... c4 {[%clk 0:00:12]} 36. Kxh3 {[%clk
0:01:41.1]} 36... c3 {[%clk 0:00:10.5]} 37. bxc3 {[%clk 0:01:36]} 37... dxc3
{[%clk 0:00:11.4]} 38. Rb1 {[%clk 0:01:36.1]} 38... a6 {[%clk 0:00:05.9]} 39.
Rb4 {[%clk 0:01:34.8]} 39... Rd8 {[%clk 0:00:02.3]} 40. Kg3 {[%clk 0:01:34.4]}
40... Kf6 {[%clk 0:00:02]} 41. Kf2 {[%clk 0:01:34.2]} 41... Rd4 {[%clk
0:00:01.8]} 42. Ke3 {[%clk 0:01:28.9]} 42... Rd6 {[%clk 0:00:01.3]} 43. a4
{[%clk 0:01:26.1]} 43... bxa4 {[%clk 0:00:01.1]} 44. Rxa4 {[%clk 0:01:27]} 44...
Rb6 {[%clk 0:00:01]} 45. Ra3 {[%clk 0:01:27.1]} 45... Rc6 {[%clk 0:00:01]} 46.
Be8 {[%clk 0:01:26.6]} 46... Rc8 {[%clk 0:00:01.5]} 47. Rxa6+ {[%clk 0:01:25.5]}
1-0

[Event "Late-Titled-Tuesday-Blitz-March-19-2024"]
[Site "Chess.com"]
[Date "2024.03.19"]
[Round "9"]
[White "Rud_Makarian"]
[Black "Jospem"]
[Result "1/2-1/2"]
[WhiteElo "3006"]
[BlackElo "3055"]
[TimeControl "180+1"]
[EndTime "15:42:41 PDT"]
[Termination "Game drawn by repetition"]

1. c4 {[%clk 0:03:00.9]} 1... c5 {[%clk 0:02:59.8]} 2. Nf3 {[%clk 0:03:00.9]}
2... Nc6 {[%clk 0:03:00.5]} 3. g3 {[%clk 0:03:01.6]} 3... g6 {[%clk 0:03:00.9]}
4. Bg2 {[%clk 0:03:01.9]} 4... Bg7 {[%clk 0:03:01.3]} 5. Nc3 {[%clk 0:03:02]}
5... d6 {[%clk 0:03:01.9]} 6. O-O {[%clk 0:03:01.5]} 6... e6 {[%clk 0:03:02.1]}
7. d3 {[%clk 0:02:59.7]} 7... Nge7 {[%clk 0:03:02.1]} 8. a3 {[%clk 0:03:00.1]}
8... O-O {[%clk 0:03:02.4]} 9. Bd2 {[%clk 0:03:00.7]} 9... b6 {[%clk 0:03:01.4]}
10. b4 {[%clk 0:02:59.3]} 10... Rb8 {[%clk 0:03:00.4]} 11. b5 {[%clk 0:02:58.2]}
11... Nd4 {[%clk 0:02:56.8]} 12. a4 {[%clk 0:02:57.2]} 12... Bb7 {[%clk
0:02:56.6]} 13. Nxd4 {[%clk 0:02:49.4]} 13... cxd4 {[%clk 0:02:57.5]} 14. Na2
{[%clk 0:02:39.7]} 14... Bxg2 {[%clk 0:02:51.9]} 15. Kxg2 {[%clk 0:02:40.6]}
15... Qd7 {[%clk 0:02:29.1]} 16. Nb4 {[%clk 0:02:38.6]} 16... Rbc8 {[%clk
0:02:21.7]} 17. a5 {[%clk 0:02:36.2]} 17... d5 {[%clk 0:02:22.2]} 18. Qb3 {[%clk
0:01:57.7]} 18... dxc4 {[%clk 0:02:21]} 19. dxc4 {[%clk 0:01:58.6]} 19... d3
{[%clk 0:01:17.2]} 20. exd3 {[%clk 0:01:58.9]} 20... Bxa1 {[%clk 0:01:16.6]} 21.
Rxa1 {[%clk 0:01:59.8]} 21... Nf5 {[%clk 0:01:16.7]} 22. Bc3 {[%clk 0:01:52.9]}
22... Nd4 {[%clk 0:01:04.2]} 23. Bxd4 {[%clk 0:01:48]} 23... Qxd4 {[%clk
0:01:05.1]} 24. Ra3 {[%clk 0:01:47]} 24... Qd6 {[%clk 0:00:53.7]} 25. Nc6 {[%clk
0:01:39.8]} 25... Rxc6 {[%clk 0:00:53.8]} 26. bxc6 {[%clk 0:01:39.7]} 26...
Qxc6+ {[%clk 0:00:54.7]} 27. Kg1 {[%clk 0:01:34.1]} 27... Rd8 {[%clk 0:00:54]}
28. axb6 {[%clk 0:01:33.9]} 28... axb6 {[%clk 0:00:54.9]} 29. h4 {[%clk
0:01:19.5]} 29... h5 {[%clk 0:00:53]} 30. Qb2 {[%clk 0:01:17.6]} 30... Qc5
{[%clk 0:00:34.2]} 31. Rb3 {[%clk 0:01:15.6]} 31... e5 {[%clk 0:00:23.9]} 32.
Rb5 {[%clk 0:00:43.3]} 32... Qd4 {[%clk 0:00:24]} 33. Qxd4 {[%clk 0:00:41.9]}
33... Rxd4 {[%clk 0:00:24.9]} 34. Rxe5 {[%clk 0:00:42]} 34... Rxd3 {[%clk
0:00:25]} 35. Rb5 {[%clk 0:00:39.5]} 35... Rd4 {[%clk 0:00:22.4]} 36. Rxb6
{[%clk 0:00:38.6]} 36... Rxc4 {[%clk 0:00:22.7]} 37. Kg2 {[%clk 0:00:39.1]}
37... Rc3 {[%clk 0:00:22.9]} 38. Rb7 {[%clk 0:00:38.5]} 38... Rd3 {[%clk
0:00:23]} 39. Rb6 {[%clk 0:00:38.8]} 39... Rc3 {[%clk 0:00:23.5]} 40. Rb7 {[%clk
0:00:39.2]} 40... Rd3 {[%clk 0:00:23.9]} 41. Rb6 {[%clk 0:00:39.6]} 41... Rc3
{[%clk 0:00:24.4]} 1/2-1/2

[Event "Late-Titled-Tuesday-Blitz-March-19-2024"]
[Site "Chess.com"]
[Date "2024.03.19"]
[Round "9"]
[White "TheRigos"]
[Black "Der_Balak_3Halak"]
[Result "1-0"]
[WhiteElo "2573"]
[BlackElo "2421"]
[TimeControl "180+1"]
[EndTime "15:42:47 PDT"]
[Termination "TheRigos won by resignation"]

1. e4 {[%clk 0:03:00.9]} 1... c6 {[%clk 0:02:59]} 2. d4 {[%clk 0:03:00]} 2... d5
{[%clk 0:02:58.7]} 3. Nc3 {[%clk 0:02:51.3]} 3... dxe4 {[%clk 0:02:57.4]} 4. f3
{[%clk 0:02:51.9]} 4... e5 {[%clk 0:02:55.6]} 5. dxe5 {[%clk 0:02:24.2]} 5...
Qxd1+ {[%clk 0:02:54.4]} 6. Kxd1 {[%clk 0:02:10.7]} 6... exf3 {[%clk 0:02:54.2]}
7. Nxf3 {[%clk 0:02:11.3]} 7... Bg4 {[%clk 0:02:54.1]} 8. h3 {[%clk 0:02:03.1]}
8... Bxf3+ {[%clk 0:02:53.2]} 9. gxf3 {[%clk 0:02:03.2]} 9... Nd7 {[%clk
0:02:54]} 10. f4 {[%clk 0:02:03.6]} 10... O-O-O {[%clk 0:02:51.9]} 11. Bd3
{[%clk 0:01:54.6]} 11... g5 {[%clk 0:02:48.5]} 12. Ke2 {[%clk 0:01:36.7]} 12...
gxf4 {[%clk 0:02:45.3]} 13. Bxf4 {[%clk 0:01:37.4]} 13... Bh6 {[%clk 0:02:45.6]}
14. Bh2 {[%clk 0:01:31.1]} 14... Ne7 {[%clk 0:02:29.3]} 15. Ne4 {[%clk
0:01:30.9]} 15... Nf5 {[%clk 0:02:24.6]} 16. Raf1 {[%clk 0:01:24.4]} 16... Nd4+
{[%clk 0:02:21.4]} 17. Kd1 {[%clk 0:01:24.4]} 17... Bf8 {[%clk 0:01:44.1]} 18.
Rxf7 {[%clk 0:01:19]} 18... Nc5 {[%clk 0:01:05.4]} 19. Nxc5 {[%clk 0:01:12.6]}
19... Bxc5 {[%clk 0:01:01.3]} 20. c3 {[%clk 0:01:04.7]} 20... Ne6 {[%clk
0:00:52.9]} 21. Kc2 {[%clk 0:01:04.7]} 21... Rhf8 {[%clk 0:00:52]} 22. Rhf1
{[%clk 0:01:04.5]} 22... h5 {[%clk 0:00:37.2]} 23. Bf5 {[%clk 0:00:49.7]} 23...
Rde8 {[%clk 0:00:36.4]} 24. Bxe6+ {[%clk 0:00:47.9]} 24... Rxe6 {[%clk
0:00:36.9]} 25. Rxf8+ {[%clk 0:00:48.3]} 25... Bxf8 {[%clk 0:00:37.8]} 26. Rxf8+
{[%clk 0:00:48.3]} 26... Kd7 {[%clk 0:00:38.7]} 27. Rf7+ {[%clk 0:00:47.9]}
27... Ke8 {[%clk 0:00:38.7]} 28. Rf6 {[%clk 0:00:47.9]} 28... Re7 {[%clk
0:00:33.9]} 29. Kd3 {[%clk 0:00:48.2]} 29... Rg7 {[%clk 0:00:30.5]} 30. e6
{[%clk 0:00:42.3]} 30... Ke7 {[%clk 0:00:30.2]} 31. Rf7+ {[%clk 0:00:42.9]}
31... Rxf7 {[%clk 0:00:30.6]} 32. exf7 {[%clk 0:00:43.8]} 32... Kxf7 {[%clk
0:00:31.3]} 33. Bb8 {[%clk 0:00:44.4]} 33... a6 {[%clk 0:00:30.9]} 34. Ke4
{[%clk 0:00:45]} 34... Ke6 {[%clk 0:00:30.9]} 35. h4 {[%clk 0:00:44.8]} 35... a5
{[%clk 0:00:23.4]} 36. a4 {[%clk 0:00:44.2]} 36... b5 {[%clk 0:00:21.2]} 37.
axb5 {[%clk 0:00:44.2]} 37... cxb5 {[%clk 0:00:22.1]} 38. Bc7 {[%clk 0:00:44.4]}
38... a4 {[%clk 0:00:21.4]} 39. Ba5 {[%clk 0:00:45]} 39... Kd6 {[%clk
0:00:21.1]} 40. Bb4+ {[%clk 0:00:45.4]} 40... Kc6 {[%clk 0:00:21.2]} 41. Ke5
{[%clk 0:00:45.7]} 1-0

[Event "Late-Titled-Tuesday-Blitz-March-19-2024"]
[Site "Chess.com"]
[Date "2024.03.19"]
[Round "9"]
[White "albi1999"]
[Black "MetiForce"]
[Result "0-1"]
[WhiteElo "2622"]
[BlackElo "2922"]
[TimeControl "180+1"]
[EndTime "15:42:49 PDT"]
[Termination "MetiForce won by checkmate"]

1. Nf3 {[%clk 0:02:53.1]} 1... d5 {[%clk 0:02:58.2]} 2. e3 {[%clk 0:02:52.1]}
2... Bg4 {[%clk 0:02:57.4]} 3. h3 {[%clk 0:02:49.1]} 3... Bxf3 {[%clk
0:02:57.1]} 4. Qxf3 {[%clk 0:02:49.2]} 4... c6 {[%clk 0:02:56.9]} 5. c4 {[%clk
0:02:48.2]} 5... Nf6 {[%clk 0:02:56.1]} 6. Nc3 {[%clk 0:02:46.7]} 6... e6 {[%clk
0:02:55.2]} 7. b3 {[%clk 0:02:45.7]} 7... Nbd7 {[%clk 0:02:55]} 8. Bb2 {[%clk
0:02:44]} 8... Bd6 {[%clk 0:02:55.4]} 9. d4 {[%clk 0:02:43.4]} 9... O-O {[%clk
0:02:55.1]} 10. Be2 {[%clk 0:02:32.1]} 10... Qe7 {[%clk 0:02:50.5]} 11. O-O
{[%clk 0:02:31.2]} 11... Ba3 {[%clk 0:02:43.4]} 12. Bxa3 {[%clk 0:02:27.6]}
12... Qxa3 {[%clk 0:02:44.3]} 13. e4 {[%clk 0:02:24.7]} 13... dxe4 {[%clk
0:02:43.2]} 14. Nxe4 {[%clk 0:02:25.6]} 14... Nxe4 {[%clk 0:02:44.1]} 15. Qxe4
{[%clk 0:02:26.5]} 15... Nf6 {[%clk 0:02:41.6]} 16. Qe3 {[%clk 0:02:26.6]} 16...
a5 {[%clk 0:02:39.1]} 17. Qc1 {[%clk 0:02:22.8]} 17... Qb4 {[%clk 0:02:24.5]}
18. Rb1 {[%clk 0:02:17.6]} 18... Rfd8 {[%clk 0:02:21.5]} 19. Rd1 {[%clk
0:02:16.5]} 19... Rd7 {[%clk 0:02:08.3]} 20. a3 {[%clk 0:02:12.7]} 20... Qb6
{[%clk 0:02:07.9]} 21. Qc3 {[%clk 0:01:48.6]} 21... Rad8 {[%clk 0:02:07.2]} 22.
c5 {[%clk 0:01:44]} 22... Qc7 {[%clk 0:02:07.3]} 23. Bf3 {[%clk 0:01:41.1]}
23... h6 {[%clk 0:01:56.2]} 24. b4 {[%clk 0:01:40.3]} 24... axb4 {[%clk
0:01:56.4]} 25. axb4 {[%clk 0:01:36.7]} 25... Qf4 {[%clk 0:01:51.5]} 26. Qe3
{[%clk 0:01:27]} 26... Qf5 {[%clk 0:01:34.1]} 27. b5 {[%clk 0:01:16.5]} 27...
Nd5 {[%clk 0:01:32.1]} 28. Bxd5 {[%clk 0:01:10.8]} 28... Rxd5 {[%clk 0:01:32.4]}
29. bxc6 {[%clk 0:01:10.1]} 29... bxc6 {[%clk 0:01:33.3]} 30. Rb6 {[%clk
0:00:57.7]} 30... Rxc5 {[%clk 0:01:28.3]} 31. dxc5 {[%clk 0:00:32.7]} 31...
Rxd1+ {[%clk 0:01:29.2]} 32. Kh2 {[%clk 0:00:33.2]} 32... Rd3 {[%clk 0:00:58.9]}
33. Qe2 {[%clk 0:00:22.7]} 33... Qf4+ {[%clk 0:00:50.7]} 34. g3 {[%clk
0:00:20.8]} 34... Qd4 {[%clk 0:00:51.3]} 35. Kg2 {[%clk 0:00:14.8]} 35... Qd5+
{[%clk 0:00:48.4]} 36. Kh2 {[%clk 0:00:15.1]} 36... Rd1 {[%clk 0:00:45.4]} 37.
g4 {[%clk 0:00:12.8]} 37... Rh1+ {[%clk 0:00:42.3]} 38. Kg3 {[%clk 0:00:13]}
38... Rg1+ {[%clk 0:00:43.2]} 39. Kh4 {[%clk 0:00:12.4]} 39... Qg5# {[%clk
0:00:42.7]} 0-1

[Event "Late-Titled-Tuesday-Blitz-March-19-2024"]
[Site "Chess.com"]
[Date "2024.03.19"]
[Round "9"]
[White "woodhy"]
[Black "Bryanl106"]
[Result "0-1"]
[WhiteElo "2517"]
[BlackElo "2669"]
[TimeControl "180+1"]
[EndTime "15:42:50 PDT"]
[Termination "Bryanl106 won by resignation"]

1. e4 {[%clk 0:03:00.9]} 1... e5 {[%clk 0:03:00.1]} 2. Nf3 {[%clk 0:03:00.6]}
2... Nc6 {[%clk 0:03:00.3]} 3. Bb5 {[%clk 0:02:59.9]} 3... a6 {[%clk 0:03:00.7]}
4. Bxc6 {[%clk 0:02:59.1]} 4... dxc6 {[%clk 0:03:01.6]} 5. O-O {[%clk
0:02:57.5]} 5... Qf6 {[%clk 0:02:59]} 6. d4 {[%clk 0:02:53.4]} 6... exd4 {[%clk
0:02:56.9]} 7. e5 {[%clk 0:02:54.3]} 7... Qd8 {[%clk 0:02:56.3]} 8. Nxd4 {[%clk
0:02:50.7]} 8... Bc5 {[%clk 0:02:53.9]} 9. Be3 {[%clk 0:02:49.3]} 9... Bb6
{[%clk 0:02:51.7]} 10. Nc3 {[%clk 0:02:43.9]} 10... Ne7 {[%clk 0:02:50.4]} 11.
Qd2 {[%clk 0:02:36]} 11... O-O {[%clk 0:02:47.6]} 12. Rad1 {[%clk 0:02:36.1]}
12... Nd5 {[%clk 0:02:45.4]} 13. Nxd5 {[%clk 0:02:17.4]} 13... Qxd5 {[%clk
0:02:46.3]} 14. Nf3 {[%clk 0:02:07]} 14... Qxa2 {[%clk 0:02:31.4]} 15. Bxb6
{[%clk 0:01:37.1]} 15... cxb6 {[%clk 0:02:32.3]} 16. Qb4 {[%clk 0:01:36.5]}
16... Qa5 {[%clk 0:02:25.5]} 17. Qe7 {[%clk 0:01:30.2]} 17... Bg4 {[%clk
0:02:15.4]} 18. Rd3 {[%clk 0:01:27.6]} 18... Bf5 {[%clk 0:02:02.3]} 19. Rc3
{[%clk 0:01:10]} 19... Rab8 {[%clk 0:01:53.9]} 20. Re1 {[%clk 0:01:01.6]} 20...
Rfe8 {[%clk 0:01:53.1]} 21. Qc7 {[%clk 0:01:00.9]} 21... Rec8 {[%clk 0:01:46.5]}
22. Qe7 {[%clk 0:00:58.3]} 22... Qd5 {[%clk 0:01:45.4]} 23. h3 {[%clk
0:00:17.3]} 23... c5 {[%clk 0:01:35.6]} 24. Nh4 {[%clk 0:00:16.1]} 24... Be6
{[%clk 0:01:29.7]} 25. Rd3 {[%clk 0:00:15.9]} 25... Qc4 {[%clk 0:01:26.1]} 26.
Rg3 {[%clk 0:00:14.2]} 26... Kh8 {[%clk 0:01:21]} 27. Nf3 {[%clk 0:00:13.7]}
27... Re8 {[%clk 0:01:16.8]} 28. Qg5 {[%clk 0:00:13.4]} 28... Rg8 {[%clk
0:01:15.9]} 29. Qe7 {[%clk 0:00:13.4]} 29... Bd5 {[%clk 0:01:09.5]} 30. Ng5
{[%clk 0:00:13.1]} 30... Rge8 {[%clk 0:01:04.7]} 31. Qc7 {[%clk 0:00:12.6]}
31... Rbc8 {[%clk 0:01:01]} 32. Qxb6 {[%clk 0:00:12.2]} 32... Qb5 {[%clk
0:00:59.4]} 33. Qd6 {[%clk 0:00:11.5]} 33... Rcd8 {[%clk 0:00:57.3]} 34. Qc7
{[%clk 0:00:11.5]} 34... Rd7 {[%clk 0:00:57.2]} 35. c4 {[%clk 0:00:05.8]} 35...
Bxc4 {[%clk 0:00:56.8]} 36. Nxf7+ {[%clk 0:00:05.1]} 36... Bxf7 {[%clk
0:00:52.7]} 37. e6 {[%clk 0:00:04.9]} 37... Rxc7 {[%clk 0:00:52.8]} 38. exf7
{[%clk 0:00:05]} 38... Rxe1+ {[%clk 0:00:53.7]} 39. Kh2 {[%clk 0:00:05]} 39...
Rxf7 {[%clk 0:00:54.6]} 40. Rd3 {[%clk 0:00:04.6]} 40... h6 {[%clk 0:00:53.8]}
41. Rd8+ {[%clk 0:00:04.3]} 41... Kh7 {[%clk 0:00:54.2]} 42. Rd2 {[%clk
0:00:05]} 42... Qf1 {[%clk 0:00:53.2]} 0-1

[Event "Late-Titled-Tuesday-Blitz-March-19-2024"]
[Site "Chess.com"]
[Date "2024.03.19"]
[Round "9"]
[White "Romkachess"]
[Black "dolynachess"]
[Result "1-0"]
[WhiteElo "2694"]
[BlackElo "2516"]
[TimeControl "180+1"]
[EndTime "15:42:54 PDT"]
[Termination "Romkachess won on time"]

1. e4 {[%clk 0:03:00.9]} 1... c5 {[%clk 0:02:57.7]} 2. Nf3 {[%clk 0:02:59.8]}
2... d6 {[%clk 0:02:57.4]} 3. d4 {[%clk 0:03:00.3]} 3... cxd4 {[%clk 0:02:58.3]}
4. Nxd4 {[%clk 0:03:00.9]} 4... Nf6 {[%clk 0:02:58.8]} 5. Nc3 {[%clk 0:03:01.3]}
5... g6 {[%clk 0:02:59.3]} 6. Be3 {[%clk 0:02:58.4]} 6... Nc6 {[%clk 0:02:59.3]}
7. Bc4 {[%clk 0:02:58.6]} 7... Ng4 {[%clk 0:02:47.5]} 8. Nxc6 {[%clk 0:02:15.5]}
8... bxc6 {[%clk 0:02:43.6]} 9. Qd4 {[%clk 0:02:05.5]} 9... e5 {[%clk
0:02:28.1]} 10. Qd3 {[%clk 0:02:04.3]} 10... Nxe3 {[%clk 0:02:22.6]} 11. Qxe3
{[%clk 0:02:05.2]} 11... Qb6 {[%clk 0:02:17.2]} 12. Qf3 {[%clk 0:01:58.7]} 12...
Qc7 {[%clk 0:01:46.1]} 13. O-O {[%clk 0:01:56.2]} 13... Bg7 {[%clk 0:01:43.8]}
14. Rad1 {[%clk 0:01:55.2]} 14... O-O {[%clk 0:01:43.8]} 15. Qd3 {[%clk
0:01:51.9]} 15... Rd8 {[%clk 0:01:39.2]} 16. f4 {[%clk 0:01:47.8]} 16... exf4
{[%clk 0:01:34.5]} 17. Rxf4 {[%clk 0:01:47.7]} 17... Be6 {[%clk 0:01:34]} 18.
Rdf1 {[%clk 0:01:42.1]} 18... Qb6+ {[%clk 0:01:01]} 19. Kh1 {[%clk 0:01:40.4]}
19... Qxb2 {[%clk 0:00:59.5]} 20. Bxe6 {[%clk 0:01:31.3]} 20... fxe6 {[%clk
0:01:00.4]} 21. Ne2 {[%clk 0:01:07]} 21... Qe5 {[%clk 0:00:59.2]} 22. Qc4 {[%clk
0:00:51.5]} 22... Rac8 {[%clk 0:00:50.9]} 23. Qa6 {[%clk 0:00:45.8]} 23... Rc7
{[%clk 0:00:46.8]} 24. c3 {[%clk 0:00:35.3]} 24... Bh6 {[%clk 0:00:37.5]} 25.
R4f2 {[%clk 0:00:23]} 25... Qb5 {[%clk 0:00:14.4]} 26. Qa3 {[%clk 0:00:21.2]}
26... Be3 {[%clk 0:00:12.3]} 27. Nd4 {[%clk 0:00:19.5]} 27... Qd3 {[%clk
0:00:10.5]} 28. Rf3 {[%clk 0:00:19.2]} 1-0

[Event "Late-Titled-Tuesday-Blitz-March-19-2024"]
[Site "Chess.com"]
[Date "2024.03.19"]
[Round "9"]
[White "AndresDelgado77"]
[Black "tarno17"]
[Result "1-0"]
[WhiteElo "2334"]
[BlackElo "2183"]
[TimeControl "180+1"]
[EndTime "15:42:55 PDT"]
[Termination "AndresDelgado77 won on time"]

1. e4 {[%clk 0:03:00.2]} 1... c5 {[%clk 0:03:00]} 2. Nf3 {[%clk 0:02:59.8]} 2...
e6 {[%clk 0:02:59.8]} 3. b4 {[%clk 0:02:59.1]} 3... d5 {[%clk 0:02:56.4]} 4.
exd5 {[%clk 0:02:56.3]} 4... Qxd5 {[%clk 0:02:56.4]} 5. Nc3 {[%clk 0:02:54.5]}
5... Qd8 {[%clk 0:02:54.6]} 6. bxc5 {[%clk 0:02:52.2]} 6... Bxc5 {[%clk
0:02:53.6]} 7. d4 {[%clk 0:02:50.8]} 7... Bb4 {[%clk 0:02:39.2]} 8. Bd2 {[%clk
0:02:49.8]} 8... Nf6 {[%clk 0:02:29.6]} 9. Rb1 {[%clk 0:02:27.5]} 9... Qa5
{[%clk 0:02:13.9]} 10. Rxb4 {[%clk 0:02:16.9]} 10... Qxb4 {[%clk 0:02:13.1]} 11.
Nb5 {[%clk 0:02:11.8]} 11... Qe7 {[%clk 0:02:01.2]} 12. Bf4 {[%clk 0:02:10.1]}
12... O-O {[%clk 0:01:42.2]} 13. Bd6 {[%clk 0:02:09.2]} 13... Qd8 {[%clk
0:01:30.9]} 14. Bxf8 {[%clk 0:01:59.2]} 14... Kxf8 {[%clk 0:01:19.7]} 15. Qd2
{[%clk 0:01:49.2]} 15... Nc6 {[%clk 0:01:15.3]} 16. Bd3 {[%clk 0:01:26.8]} 16...
a6 {[%clk 0:01:03.7]} 17. Na3 {[%clk 0:01:26.4]} 17... b5 {[%clk 0:00:56.2]} 18.
c3 {[%clk 0:01:19.3]} 18... Bb7 {[%clk 0:00:42.6]} 19. O-O {[%clk 0:01:15.8]}
19... Qd5 {[%clk 0:00:32]} 20. Nc2 {[%clk 0:01:10.5]} 20... Qh5 {[%clk
0:00:20.5]} 21. Ne3 {[%clk 0:01:05.2]} 21... Ne7 {[%clk 0:00:18.2]} 22. Ne5
{[%clk 0:01:00.1]} 22... Kg8 {[%clk 0:00:02.3]} 23. Be2 {[%clk 0:00:50.2]} 23...
Qh6 {[%clk 0:00:02.4]} 24. f4 {[%clk 0:00:37.3]} 24... Ned5 {[%clk 0:00:02.5]}
25. N3g4 {[%clk 0:00:26.2]} 25... Nxg4 {[%clk 0:00:02.4]} 26. Bxg4 {[%clk
0:00:26.3]} 26... Nf6 {[%clk 0:00:01.7]} 27. Bf3 {[%clk 0:00:25.1]} 27... Nh5
{[%clk 0:00:01.8]} 28. Bxb7 {[%clk 0:00:23.8]} 1-0

[Event "Late-Titled-Tuesday-Blitz-March-19-2024"]
[Site "Chess.com"]
[Date "2024.03.19"]
[Round "9"]
[White "manitodeplomo"]
[Black "DeArron_Fox"]
[Result "1-0"]
[WhiteElo "2656"]
[BlackElo "2508"]
[TimeControl "180+1"]
[EndTime "15:42:58 PDT"]
[Termination "manitodeplomo won on time"]

1. d4 {[%clk 0:01:59.3]} 1... d5 {[%clk 0:02:43.8]} 2. c4 {[%clk 0:01:58.3]}
2... e6 {[%clk 0:02:38.8]} 3. Nf3 {[%clk 0:01:58.3]} 3... Nf6 {[%clk 0:02:35.9]}
4. Nc3 {[%clk 0:01:58.4]} 4... Be7 {[%clk 0:02:35.9]} 5. Bg5 {[%clk 0:01:57.5]}
5... O-O {[%clk 0:02:35.9]} 6. Qc2 {[%clk 0:01:57]} 6... h6 {[%clk 0:02:35.3]}
7. Bxf6 {[%clk 0:01:56.7]} 7... Bxf6 {[%clk 0:02:36.2]} 8. O-O-O {[%clk
0:01:56.8]} 8... a6 {[%clk 0:02:01.3]} 9. e4 {[%clk 0:01:55.3]} 9... dxe4 {[%clk
0:01:25.5]} 10. Qxe4 {[%clk 0:01:56.2]} 10... Bd7 {[%clk 0:01:09.9]} 11. h4
{[%clk 0:01:27.9]} 11... Bc6 {[%clk 0:01:06.1]} 12. Qe3 {[%clk 0:01:26.6]} 12...
b5 {[%clk 0:00:27.2]} 13. g4 {[%clk 0:01:19]} 13... bxc4 {[%clk 0:00:08.2]} 14.
Bxc4 {[%clk 0:01:11.1]} 14... Nd7 {[%clk 0:00:04.3]} 15. g5 {[%clk 0:01:10.3]}
15... hxg5 {[%clk 0:00:03.3]} 16. hxg5 {[%clk 0:01:11.2]} 16... Bxf3 {[%clk
0:00:03.3]} 17. Qxf3 {[%clk 0:01:10.7]} 17... Bxg5+ {[%clk 0:00:03]} 18. Kc2
{[%clk 0:01:10.3]} 18... Rb8 {[%clk 0:00:02.6]} 19. Rdg1 {[%clk 0:01:08.4]}
19... Qf6 {[%clk 0:00:02.3]} 20. Qe2 {[%clk 0:01:02.2]} 20... Bh6 {[%clk
0:00:02]} 21. Rg4 {[%clk 0:00:30.7]} 21... Nb6 {[%clk 0:00:02.2]} 22. Bb3 {[%clk
0:00:30.3]} 22... Nd5 {[%clk 0:00:02.3]} 23. Ne4 {[%clk 0:00:28.4]} 23... Qf5
{[%clk 0:00:01.9]} 24. Rh5 {[%clk 0:00:22.1]} 24... Qxh5 {[%clk 0:00:01.4]} 25.
Rxg7+ {[%clk 0:00:21.9]} 25... Bxg7 {[%clk 0:00:02.3]} 26. Qxh5 {[%clk
0:00:22.1]} 26... Rfd8 {[%clk 0:00:02.4]} 27. Ng5 {[%clk 0:00:21.3]} 27... Nb4+
{[%clk 0:00:02.4]} 28. Kb1 {[%clk 0:00:20]} 28... Rd7 {[%clk 0:00:02.6]} 29.
Nxe6 {[%clk 0:00:19.8]} 1-0